[Event "XII Sabadell Open 2019"]
[Site "Sabadell"]
[Date "2019.09.02"]
[Round "1.3"]
[White "Moskalenko, Viktor"]
[Black "Lever, Erwan"]
[Result "0-1"]
[ECO "B24"]
[WhiteElo "2475"]
[BlackElo "2221"]
[Annotator "RC"]
[PlyCount "158"]
[EventDate "2019.09.01"]
[EventCountry "ESP"]
[SourceTitle "playchess.com"]
[Source "ChessBase"]
[SourceQuality "1"]
[TimeControl "5400+30"]

1. e4 {[%emt 0:01:25]} c5 {[%emt 0:00:00]} 2. Nc3 {[%emt 0:00:06]} a6 {[%emt 0:00:00]} 3. g3 {[%emt 0:00:25]} e6 {[%emt 0:00:56]} 4. Bg2 {[%emt 0:00:09]} Nc6 {[%emt 0:00:24]} 5. Nh3 {[%emt 0:01:53]} g6 {[%emt 0:01:54]} 6. O-O {[%emt 0:00:39]} Bg7 {[%emt 0:00:13]} 7. f4 {[%emt 0:04:04]} Nge7 {[%emt 0:02:03]} 8. d3 {[%emt 0:00:06]} O-O {[%emt 0:24:48]} 9. Nf2 {[%emt 0:05:03]} d6 {[%emt 0:10:58]} 10. Ne2 {[%emt 0:27:08]} b5 {[%emt 0:00:00]} 11. Rb1 {[%emt 0:22:51]} b4 {[%emt 0:11:51]} 12. b3 {[%emt 0:16:49]} Bb7 {[%emt 0:00:00]} 13. Bb2 {[%emt 0:00:00]} Nd4 {[%emt 0:00:00]} 14. Nxd4 {[%emt 0:00:00]} cxd4 {[%emt 0:00:00]} 15. Qe2 {[%emt 0:00:00]} Rc8 {[%emt 0:00:00]} 16. g4 {[%emt 0:03:35]} Rc5 {[%emt 0:08:28]} 17. g5 {[%emt 0:04:26]} Qc7 {[%emt 0:00:00]} 18. Qe1 {[%emt 0:17:48]} a5 {[%emt 0:17:38]} 19. Ng4 {[%emt 0:00:00]} Rxc2 {[%emt 0:00:10]} 20. Bf3 {[%emt 0:00:00]} d5 {[%emt 0:02:01]} 21. Nf6+ {[%emt 0:00:00]} Bxf6 {[%emt 0:00:17]} 22. gxf6 {[%emt 0:00:00]} Qxf4 {[%emt 0:03:33]} 23. Rf2 {[%emt 0:00:00]} Rxf2 {[%emt 0:00:00]} 24. Qxf2 {[%emt 0:00:00]} Nc6 25. Bg2 {[%emt 0:02:54]} Qxf2+ {[%emt 0:00:57]} 26. Kxf2 {[%emt 0:00:45]} Ne5 {[%emt 0:01:21]} 27. Bxd4 {[%emt 0:04:06]} Nxd3+ {[%emt 0:04:41]} 28. Ke3 {[%emt 0:00:00]} dxe4 {[%emt 0:00:05]} 29. Bxe4 {[%emt 0:00:00]} Bxe4 {[%emt 0:00:50]} 30. Kxe4 {[%emt 0:00:00]} Rd8 {[%emt 0:00:07]} 31. Kxd3 {[%emt 0:00:00]} e5 {[%emt 0:00:06]} 32. Rc1 {[%emt 0:00:00]} Rxd4+ {[%emt 0:04:18]} 33. Ke3 {[%emt 0:00:00]} Rd8 {[%emt 0:00:11]} 34. Rc5 {[%emt 0:00:00]} Ra8 {[%emt 0:00:04]} 35. Rxe5 {[%emt 0:00:00]} h6 {[%emt 0:00:29]} 36. Kd4 {[%emt 0:00:00]} g5 {[%emt 0:03:08]} 37. Ke4 {[%emt 0:00:00]} a4 {[%emt 0:01:47]} 38. Rb5 {[%emt 0:00:00]} axb3 {[%emt 0:00:05]} 39. axb3 {[%emt 0:00:00]} Kh7 {[%emt 0:00:09]} 40. Rxb4 {[%emt 0:00:00]} Ra2 {[%emt 0:00:22]} 41. h4 {[%emt 0:00:00]} Rh2 {[%emt 0:00:23]} 42. Kf5 {[%emt 0:00:00]} Rf2+ {[%emt 0:01:32]} 43. Kg4 {[%emt 0:00:00]} Kg6 {[%emt 0:00:20]} 44. hxg5 {[%emt 0:00:00]} hxg5 {[%emt 0:00:07]} 45. Rb8 {[%emt 0:00:00]} Rf4+ {[%emt 0:00:05]} 46. Kg3 {[%emt 0:00:00]} Rxf6 {[%emt 0:00:19]} 47. b4 {[%emt 0:00:00]} Rc6 {[%emt 0:00:27]} 48. b5 {[%emt 0:00:00]} Rc3+ {[%emt 0:00:02]} 49. Kf2 {[%emt 0:00:00]} f5 {[%emt 0:00:07]} 50. Ke2 {[%emt 0:00:00]} f4 {[%emt 0:00:07]} 51. Kd2 {[%emt 0:00:00]} Rc5 {[%emt 0:00:21]} 52. Kd3 {[%emt 0:00:57]} Kf5 {[%emt 0:00:07]} 53. Kd4 {[%emt 0:00:12]} Rc1 {[%emt 0:00:07]} 54. b6 {[%emt 0:00:07]} Kg4 {[%emt 0:00:16]} 55. b7 {[%emt 0:00:39]} Rb1 {[%emt 0:00:05]} 56. Ke4 {[%emt 0:01:14]} Rb3 {[%emt 0:02:22]} 57. Kd4 {[%emt 0:00:04]} f3 {[%emt 0:00:17]} 58. Kc4 {[%emt 0:00:07]} Rb1 {[%emt 0:00:09]} 59. Kd3 {[%emt 0:00:08]} Rb3+ {[%emt 0:05:02]} 60. Kd2 {[%emt 0:00:38]} f2 {[%emt 0:00:59]} 61. Ke2 {[%emt 0:01:34]} Kg3 {[%emt 0:00:40]} 62. Rf8 {[%emt 0:00:05]} Rxb7 {[%emt 0:00:37]} 63. Rf3+ {[%emt 0:00:29]} Kg4 {[%emt 0:00:05]} 64. Rf8 {[%emt 0:00:53]} Rb4 {[%emt 0:01:43]} 65. Kf1 {[%emt 0:00:19]} Kg3 {[%emt 0:00:24]} 66. Rf3+ {[%emt 0:00:08]} Kg4 {[%emt 0:00:09]} 67. Rxf2 {[%emt 0:01:04]} Kh3 {[%emt 0:01:40]} 68. Rf3+ {[%emt 0:00:10]} Kh2 {[%emt 0:00:07]} 69. Rf2+ {[%emt 0:00:12]} Kh1 {[%emt 0:00:42]} 70. Rf8 {[%emt 0:01:05]} Rh4 {[%emt 0:00:18]} 71. Rg8 {[%emt 0:00:38]} Rf4+ {[%emt 0:00:15]} 72. Ke2 {[%emt 0:00:03]} Rf5 {[%emt 0:00:20]} 73. Rh8+ {[%emt 0:00:43]} Kg2 {[%emt 0:00:02]} 74. Rh5 {[%emt 0:00:04]} Re5+ {[%emt 0:00:31]} 75. Kd3 {[%emt 0:00:10]} Kg3 {[%emt 0:00:07]} 76. Kd4 {[%emt 0:00:11]} Ra5 {[%emt 0:00:09]} 77. Ke3 {[%emt 0:00:44]} Rf5 {[%emt 0:00:39]} 78. Ke2 {[%emt 0:00:27]} Rf2+ {[%emt 0:00:37]} 79. Ke1 {[%emt 0:01:25]} g4 {[%emt 0:00:11]} 0-1

[Event "XII Sabadell Open 2019"]
[Site "Sabadell"]
[Date "2019.09.02"]
[Round "1.4"]
[White "Campos Cayuelas, Adria"]
[Black "Oliva Castaneda, Kevel"]
[Result "0-1"]
[ECO "C77"]
[WhiteElo "2196"]
[BlackElo "2470"]
[Annotator "ChessBase"]
[PlyCount "42"]
[EventDate "2019.09.01"]
[EventCountry "ESP"]
[SourceTitle "playchess.com"]
[Source "ChessBase"]
[SourceQuality "1"]
[TimeControl "5400+30"]

1. e4 {[%emt 0:00:00]} e5 {[%emt 0:00:00]} 2. Nf3 {[%emt 0:00:00]} Nc6 {[%emt 0:00:00]} 3. Bb5 {[%emt 0:00:20]} a6 {[%emt 0:00:00]} 4. Ba4 {[%emt 0:00:05]} Nf6 {[%emt 0:00:00]} 5. d3 {[%emt 0:00:41]} d6 {[%emt 0:00:00]} 6. c3 {[%emt 0:00:13]} g6 {[%emt 0:00:03]} 7. O-O {[%emt 0:00:29]} Bg7 {[%emt 0:00:05]} 8. Re1 {[%emt 0:00:37]} O-O {[%emt 0:00:12]} 9. d4 {[%emt 0:00:49]} b5 {[%emt 0:03:53]} 10. Bc2 {[%emt 0:00:30]} Bb7 {[%emt 0:06:02]} 11. a4 {[%emt 0:07:15]} exd4 {[%emt 0:00:25]} 12. cxd4 {[%emt 0:00:11]} Nb4 {[%emt 0:00:05]} 13. axb5 {[%emt 0:04:53]} axb5 {[%emt 0:00:40]} 14. Rxa8 {[%emt 0:01:38]} Qxa8 {[%emt 0:00:09]} 15. d5 {[%emt 0:00:30]} c6 {[%emt 0:00:37]} 16. Nd4 {[%emt 0:11:21]} cxd5 {[%emt 0:15:19]} 17. Nxb5 {[%emt 0:03:14]} dxe4 {[%emt 0:14:52]} 18. Bb3 {[%emt 0:04:46]} Nd3 {[%emt 0:00:20]} 19. Re2 {[%emt 0:01:07]} d5 {[%emt 0:02:46]} 20. Be3 {[%emt 0:06:02]} Ng4 {[%emt 0:01:09]} 21. Bb6 {[%emt 0:00:15]} Qa6 {[%emt 0:00:32]} 0-1

[Event "XII Sabadell Open 2019"]
[Site "Sabadell"]
[Date "2019.09.02"]
[Round "1.6"]
[White "Vicient Calvo, Ramon"]
[Black "Diaz Camallonga, Carles"]
[Result "0-1"]
[ECO "C07"]
[WhiteElo "2155"]
[BlackElo "2440"]
[Annotator "NA"]
[PlyCount "118"]
[EventDate "2019.09.01"]
[EventCountry "ESP"]
[SourceTitle "playchess.com"]
[Source "ChessBase"]
[SourceQuality "1"]
[TimeControl "5400+30"]

1. d4 {[%emt 0:00:00]} e6 {[%emt 0:00:12]} 2. e4 {[%emt 0:00:00]} d5 {[%emt 0:00:00]} 3. Nd2 {[%emt 0:00:00]} c5 {[%emt 0:00:11]} 4. Ngf3 {[%emt 0:00:00]} cxd4 {[%emt 0:00:07]} 5. exd5 {[%emt 0:00:21]} Qxd5 {[%emt 0:00:17]} 6. Bc4 {[%emt 0:00:11]} Qd6 {[%emt 0:00:06]} 7. O-O {[%emt 0:00:26]} Nf6 {[%emt 0:00:05]} 8. Nb3 {[%emt 0:00:31]} Nc6 {[%emt 0:00:05]} 9. Nbxd4 {[%emt 0:00:21]} Nxd4 {[%emt 0:00:11]} 10. Nxd4 {[%emt 0:00:50]} Be7 {[%emt 0:04:31]} 11. c3 {[%emt 0:00:22]} O-O {[%emt 0:00:43]} 12. Qf3 {[%emt 0:05:01]} Qc7 {[%emt 0:00:00]} 13. Bb3 {[%emt 0:00:08]} Bd6 {[%emt 0:01:22]} 14. h3 {[%emt 0:04:05]} Bh2+ {[%emt 0:00:48]} 15. Kh1 {[%emt 0:00:05]} Be5 {[%emt 0:02:38]} 16. Be3 {[%emt 0:05:28]} Bd7 {[%emt 0:00:00]} 17. Rfe1 {[%emt 0:01:07]} Rfd8 {[%emt 0:00:00]} 18. Rad1 {[%emt 0:01:38]} h6 {[%emt 0:03:03]} 19. Qe2 {[%emt 0:08:29]} Bf4 {[%emt 0:00:09]} 20. Bxf4 {[%emt 0:05:07]} Qxf4 {[%emt 0:00:05]} 21. Kg1 {[%emt 0:03:19]} a5 {[%emt 0:01:58]} 22. a3 {[%emt 0:05:14]} Qc7 {[%emt 0:03:01]} 23. Ba2 {[%emt 0:09:49]} Qb6 {[%emt 0:00:00]} 24. Rd2 {[%emt 0:01:47]} Rac8 {[%emt 0:02:19]} 25. Red1 {[%emt 0:00:50]} Ba4 {[%emt 0:00:51]} 26. b3 {[%emt 0:08:15]} Bd7 {[%emt 0:00:20]} 27. c4 {[%emt 0:02:49]} Re8 {[%emt 0:18:07]} 28. Nf3 {[%emt 0:11:53]} Bc6 {[%emt 0:00:00]} 29. Ne5 {[%emt 0:01:03]} Qc5 {[%emt 0:00:00]} 30. Nxc6 {[%emt 0:03:29]} Rxc6 {[%emt 0:02:20]} 31. a4 {[%emt 0:02:30]} e5 {[%emt 0:02:28]} 32. Bb1 {[%emt 0:01:02]} Kf8 {[%emt 0:00:00]} 33. Qe3 {[%emt 0:02:06]} Qxe3 {[%emt 0:00:00]} 34. fxe3 {[%emt 0:00:05]} Ke7 {[%emt 0:00:00]} 35. g4 {[%emt 0:04:47]} Rec8 {[%emt 0:00:00]} 36. Bf5 {[%emt 0:03:00]} R8c7 {[%emt 0:00:00]} 37. Rd8 {[%emt 0:00:05]} g6 {[%emt 0:00:00]} 38. Bc2 {[%emt 0:00:03]} Rc8 {[%emt 0:00:00]} 39. R8d2 {[%emt 0:00:41]} R6c7 {[%emt 0:00:00]} 40. Kg2 {[%emt 0:02:29]} Rd7 {[%emt 0:00:00]} 41. Rxd7+ {[%emt 0:00:31]} Nxd7 {[%emt 0:00:00]} 42. Rd5 {[%emt 0:00:18]} b6 {[%emt 0:01:34]} 43. Kf3 {[%emt 0:00:38]} Rc5 {[%emt 0:07:05]} 44. Rxc5 {[%emt 0:03:27]} Nxc5 {[%emt 0:00:00]} 45. Ke2 {[%emt 0:00:03]} Kd6 {[%emt 0:02:48]} 46. Kd2 {[%emt 0:00:43]} Ne6 {[%emt 0:00:00]} 47. Be4 {[%emt 0:03:30]} Ng5 {[%emt 0:00:00]} 48. Bg2 {[%emt 0:00:04]} f5 {[%emt 0:00:00]} 49. Kd3 {[%emt 0:01:55]} e4+ {[%emt 0:01:49]} 50. Kc3 {[%emt 0:00:28]} fxg4 {[%emt 0:00:19]} 51. hxg4 {[%emt 0:00:05]} Kc5 {[%emt 0:00:04]} 52. Kd2 {[%emt 0:02:28]} Kb4 {[%emt 0:00:24]} 53. Kc2 {[%emt 0:00:21]} h5 {[%emt 0:00:00]} 54. gxh5 {[%emt 0:00:16]} gxh5 {[%emt 0:00:00]} 55. Bh1 {[%emt 0:00:56]} h4 {[%emt 0:00:01]} 56. Bg2 {[%emt 0:00:16]} h3 {[%emt 0:00:14]} 57. Bh1 {[%emt 0:00:03]} Nf3 {[%emt 0:04:02]} 58. Kb2 {[%emt 0:00:53]} Nd2 {[%emt 0:00:05]} 59. Kc2 {[%emt 0:00:51]} Nxb3 {[%emt 0:00:16]} 0-1

[Event "XII Sabadell Open 2019"]
[Site "Sabadell"]
[Date "2019.09.02"]
[Round "1.7"]
[White "Harikrishnan.A.Ra"]
[Black "Rodriguez Velasco, German Enrique"]
[Result "1-0"]
[ECO "C00"]
[WhiteElo "2422"]
[BlackElo "2148"]
[Annotator "NA"]
[PlyCount "57"]
[EventDate "2019.09.01"]
[EventCountry "ESP"]
[SourceTitle "playchess.com"]
[Source "ChessBase"]
[SourceQuality "1"]
[TimeControl "5400+30"]

1. e4 {[%emt 0:10:14]} c5 {[%emt 0:05:47]} 2. Nf3 {[%emt 0:00:08]} e6 {[%emt 0:00:14]} 3. d3 {[%emt 0:01:01]} Nc6 {[%emt 0:00:19]} 4. g3 {[%emt 0:00:05]} d5 {[%emt 0:01:27]} 5. Nbd2 {[%emt 0:00:34]} Nf6 {[%emt 0:03:24]} 6. Bg2 {[%emt 0:00:26]} Be7 {[%emt 0:00:12]} 7. O-O {[%emt 0:00:03]} O-O {[%emt 0:00:17]} 8. Re1 {[%emt 0:00:02]} Rb8 {[%emt 0:04:32]} 9. e5 {[%emt 0:00:52]} Nd7 {[%emt 0:00:24]} 10. Nf1 {[%emt 0:00:03]} b5 {[%emt 0:00:13]} 11. h4 {[%emt 0:00:05]} b4 {[%emt 0:02:06]} 12. Bf4 {[%emt 0:00:30]} a5 {[%emt 0:00:53]} 13. N1h2 {[%emt 0:00:22]} Nd4 {[%emt 0:07:03]} 14. Nxd4 {[%emt 0:00:15]} cxd4 {[%emt 0:00:06]} 15. Qg4 {[%emt 0:01:01]} Re8 {[%emt 0:00:26]} 16. h5 {[%emt 0:06:50]} f5 {[%emt 0:07:43]} 17. exf6 {[%emt 0:00:15]} Nxf6 {[%emt 0:00:06]} 18. Qe2 {[%emt 0:00:56]} Bd6 {[%emt 0:00:53]} 19. Be5 {[%emt 0:01:03]} Bxe5 {[%emt 0:03:43]} 20. Qxe5 {[%emt 0:00:02]} Bd7 {[%emt 0:00:06]} 21. h6 {[%emt 0:00:25]} Rc8 {[%emt 0:08:45]} 22. Rac1 {[%emt 0:01:42]} gxh6 {[%emt 0:01:16]} 23. Qxd4 {[%emt 0:00:03]} Qe7 {[%emt 0:00:26]} 24. Nf3 {[%emt 0:00:39]} Rc5 {[%emt 0:01:54]} 25. Ne5 {[%emt 0:00:28]} Rec8 {[%emt 0:00:36]} 26. Nxd7 {[%emt 0:00:52]} Nxd7 {[%emt 0:00:06]} 27. Bxd5 {[%emt 0:00:22]} Nf8 {[%emt 0:00:19]} 28. Qg4+ {[%emt 0:03:32]} Kf7 {[%emt 0:00:21]} 29. Bc4 {[%emt 0:01:25]} 1-0

[Event "XII Sabadell Open 2019"]
[Site "Sabadell"]
[Date "2019.09.03"]
[Round "2.13"]
[White "Sole Bove, Josep"]
[Black "Fernandez Aguilar, Francisco"]
[Result "0-1"]
[ECO "C68"]
[WhiteElo "1764"]
[BlackElo "2040"]
[Annotator "NA RC"]
[PlyCount "73"]
[EventDate "2019.09.01"]
[EventCountry "ESP"]
[SourceTitle "playchess.com"]
[Source "ChessBase"]
[SourceQuality "1"]
[TimeControl "5400+30"]

1. e4 {[%emt 0:05:54]} e5 {[%emt 0:00:00]} 2. Nf3 {[%emt 0:00:22]} Nc6 {[%emt 0:00:00]} 3. Bb5 {[%emt 0:00:29]} a6 {[%emt 0:00:00]} 4. Bxc6 {[%emt 0:01:39]} dxc6 {[%emt 0:00:02]} 5. d3 {[%emt 0:00:20]} f6 {[%emt 0:00:40]} 6. Nbd2 {[%emt 0:00:38]} Be6 {[%emt 0:01:19]} 7. b3 {[%emt 0:02:15]} c5 {[%emt 0:02:01]} 8. Bb2 {[%emt 0:00:39]} Qd7 {[%emt 0:01:00]} 9. Qe2 {[%emt 0:00:18]} Ne7 {[%emt 0:00:40]} 10. Nc4 {[%emt 0:06:51]} Nc6 {[%emt 0:03:00]} 11. c3 {[%emt 0:06:53]} O-O-O {[%emt 0:12:54]} 12. O-O-O {[%emt 0:01:43]} Qf7 {[%emt 0:04:52]} 13. Kc2 {[%emt 0:08:10]} b5 {[%emt 0:05:42]} 14. Ne3 {[%emt 0:01:04]} b4 {[%emt 0:00:21]} 15. c4 {[%emt 0:00:39]} Nd4+ {[%emt 0:01:13]} 16. Nxd4 cxd4 {[%emt 0:00:55]} 17. Nf1 {[%emt 0:07:10]} Bc5 {[%emt 0:01:15]} 18. Nd2 {[%emt 0:03:43]} a5 {[%emt 0:02:56]} 19. Rdf1 {[%emt 0:00:00]} Bd6 {[%emt 0:08:07]} 20. g3 {[%emt 0:06:11]} Bh3 {[%emt 0:03:20]} 21. Ra1 {[%emt 0:01:49]} Qe7 {[%emt 0:00:44]} 22. Nb1 {[%emt 0:02:25]} a4 {[%emt 0:02:30]} 23. Nd2 {[%emt 0:08:32]} h5 {[%emt 0:03:01]} 24. bxa4 {[%emt 0:00:27]} Kd7 {[%emt 0:01:45]} 25. Nb3 {[%emt 0:04:11]} Ra8 {[%emt 0:00:00]} 26. a5 {[%emt 0:02:15]} c6 {[%emt 0:01:44]} 27. Qd2 {[%emt 0:02:00]} Bc7 {[%emt 0:02:10]} 28. a3 {[%emt 0:01:18]} Bd6 {[%emt 0:01:40]} 29. Qc1 {[%emt 0:05:58]} f5 {[%emt 0:03:41]} 30. axb4 {[%emt 0:03:41]} Bxb4 {[%emt 0:02:17]} 31. Ba3 {[%emt 0:00:39]} fxe4 {[%emt 0:00:35]} 32. dxe4 {[%emt 0:01:32]} Rhf8 {[%emt 0:02:34]} 33. f4 {[%emt 0:01:15]} exf4 {[%emt 0:00:46]} 34. Bxb4 {[%emt 0:00:50]} Qxb4 {[%emt 0:00:36]} 35. Ra4 {[%emt 0:00:24]} Qc3+ {[%emt 0:01:00]} 36. Kd1 {[%emt 0:01:00]} Qb4 {[%emt 0:00:07]} 37. Kc2 {[%emt 0:00:08]} 0-1

[Event "XII Sabadell Open 2019"]
[Site "Sabadell"]
[Date "2019.09.03"]
[Round "2.14"]
[White "Martinez Ferrer, Rafael"]
[Black "Ruiz Bravo, Alfonso"]
[Result "0-1"]
[ECO "B23"]
[WhiteElo "1752"]
[BlackElo "1947"]
[Annotator "NA"]
[PlyCount "80"]
[EventDate "2019.09.01"]
[EventCountry "ESP"]
[SourceTitle "playchess.com"]
[Source "ChessBase"]
[SourceQuality "1"]
[TimeControl "5400+30"]

1. e4 {[%emt 0:00:02]} c5 {[%emt 0:00:38]} 2. Nc3 {[%emt 0:00:08]} Nc6 {[%emt 0:00:22]} 3. f4 {[%emt 0:01:48]} g6 {[%emt 0:00:03]} 4. Nf3 {[%emt 0:00:19]} Bg7 {[%emt 0:00:17]} 5. Bb5 {[%emt 0:01:14]} d6 {[%emt 0:01:13]} 6. O-O {[%emt 0:00:57]} Bd7 {[%emt 0:00:32]} 7. d3 {[%emt 0:01:11]} e6 {[%emt 0:01:18]} 8. a4 {[%emt 0:03:14]} Nge7 {[%emt 0:05:54]} 9. Bc4 {[%emt 0:00:39]} Nd4 {[%emt 0:05:59]} 10. Nxd4 {[%emt 0:01:03]} cxd4 {[%emt 0:00:26]} 11. Nb5 {[%emt 0:07:54]} Bc6 {[%emt 0:00:08]} 12. Bb3 {[%emt 0:03:16]} a6 {[%emt 0:00:32]} 13. Na3 {[%emt 0:00:35]} b5 {[%emt 0:00:25]} 14. axb5 {[%emt 0:00:42]} axb5 {[%emt 0:00:15]} 15. Bd2 {[%emt 0:00:54]} d5 {[%emt 0:11:31]} 16. f5 {[%emt 0:03:32]} exf5 {[%emt 0:01:55]} 17. exf5 {[%emt 0:00:29]} Nxf5 {[%emt 0:01:24]} 18. Rxf5 {[%emt 0:07:33]} gxf5 {[%emt 0:01:55]} 19. Bb4 {[%emt 0:00:16]} Qg5 {[%emt 0:03:59]} 20. Qf1 {[%emt 0:01:45]} O-O-O {[%emt 0:10:01]} 21. Nb1 {[%emt 0:00:35]} Rde8 {[%emt 0:06:55]} 22. Nd2 {[%emt 0:06:57]} Re6 {[%emt 0:01:35]} 23. Nf3 {[%emt 0:06:30]} Qg4 {[%emt 0:00:37]} 24. h3 {[%emt 0:06:22]} Qg3 {[%emt 0:04:05]} 25. Be1 {[%emt 0:01:24]} Qb8 {[%emt 0:04:27]} 26. Bd2 {[%emt 0:14:10]} f4 {[%emt 0:02:35]} 27. Nh4 {[%emt 0:05:38]} Re3 {[%emt 0:01:08]} 28. Nf5 {[%emt 0:00:58]} Bf6 {[%emt 0:01:08]} 29. Bb4 {[%emt 0:01:21]} Re6 {[%emt 0:01:23]} 30. Qf3 {[%emt 0:02:09]} Qe5 {[%emt 0:00:01]} 31. Nh6 {[%emt 0:06:02]} Qe3+ 32. Kf1 Qxf3+ 33. gxf3 Re3 {[%emt 0:00:48]} 34. Kg2 {[%emt 0:02:32]} Rhe8 {[%emt 0:01:12]} 35. Nxf7 {[%emt 0:00:48]} Rg8+ {[%emt 0:00:57]} 36. Kh2 {[%emt 0:01:34]} Rxf3 {[%emt 0:01:43]} 37. Nd6+ {[%emt 0:05:48]} Kb8 {[%emt 0:01:37]} 38. Ra6 {[%emt 0:01:19]} Rf2+ {[%emt 0:01:12]} 39. Kh1 {[%emt 0:00:20]} Rf1+ {[%emt 0:00:45]} 40. Kh2 {[%emt 0:00:16]} f3 {[%emt 0:00:38]} 0-1

[Event "XII Sabadell Open 2019"]
[Site "Sabadell"]
[Date "2019.09.03"]
[Round "2.15"]
[White "Prats Rodriguez, Juan Bosco"]
[Black "Navajas Alvarez, Josep"]
[Result "1-0"]
[ECO "C41"]
[WhiteElo "1936"]
[BlackElo "1731"]
[Annotator "NA RC"]
[PlyCount "119"]
[EventDate "2019.09.01"]
[EventCountry "ESP"]
[SourceTitle "playchess.com"]
[Source "ChessBase"]
[SourceQuality "1"]
[TimeControl "5400+30"]

1. e4 {[%emt 0:00:00]} d6 {[%emt 0:00:06]} 2. d4 {[%emt 0:00:00]} Nf6 {[%emt 0:00:26]} 3. Nc3 {[%emt 0:00:04]} e5 {[%emt 0:00:40]} 4. Nf3 {[%emt 0:00:57]} Nbd7 {[%emt 0:01:29]} 5. Bc4 {[%emt 0:01:07]} exd4 {[%emt 0:02:09]} 6. Qxd4 {[%emt 0:01:31] C41: Philidor Defence} Be7 {[%emt 0:05:19]} (6... Nb6 7. Bf4 Be7 8. O-O-O Nxc4 9. Qxc4 O-O 10. Rhe1 Be6 11. Qf1 Qc8 12. Nd4 Bd7 13. f3 Rb8 {1-0 (29) Van Foreest,J (2615)-Sokolov,I (2623) Hoogeveen 2016}) 7. h3 {[%emt 0:05:55]} O-O {[%emt 0:00:00]} 8. O-O {[%emt 0:02:10]} Nb6 {[%emt 0:00:00]} 9. Bb3 {[%emt 0:08:52]} Bd7 {[%emt 0:02:13]} 10. a4 $146 {[%emt 0:05:00]} ({Predecessor:} 10. e5 dxe5 11. Nxe5 Bd6 12. Bg5 h6 13. Bh4 Be6 14. Bxe6 fxe6 {1-0 (45) Ding,L (2199)-Maar,S (1998) Vellmar 2016}) 10... a5 {[%emt 0:02:00]} 11. Bg5 {[%emt 0:02:42]} h6 {[%emt 0:04:38]} 12. Bh4 {[%emt 0:01:17]} Nh7 {[%emt 0:04:08]} 13. Bxe7 {[%emt 0:00:26]} Qxe7 {[%emt 0:01:17]} 14. Rfe1 {[%emt 0:03:49]} Ng5 {[%emt 0:01:36]} 15. Nxg5 {[%emt 0:07:16]} Qxg5 {[%emt 0:00:23]} 16. Re3 {[%emt 0:03:46]} Rfe8 {[%emt 0:05:51]} 17. Rd1 {[%emt 0:08:03]} Bc6 {[%emt 0:05:09]} 18. Rdd3 {[%emt 0:17:04]} Re7 {[%emt 0:03:36]} 19. Rf3 {[%emt 0:05:35]} Bd7 {[%emt 0:08:26]} 20. Rg3 {[%emt 0:00:00]} Qe5 {[%emt 0:00:55]} 21. Qxe5 {[%emt 0:00:00]} Rxe5 {[%emt 0:01:15]} 22. f4 {[%emt 0:00:00]} Re7 {[%emt 0:00:26]} 23. Rde3 {[%emt 0:00:57]} Rae8 {[%emt 0:01:19]} 24. Kf2 {[%emt 0:01:10]} Be6 {[%emt 0:01:34]} 25. Bxe6 {[%emt 0:00:39]} Rxe6 {[%emt 0:00:49]} 26. b3 {[%emt 0:04:50]} c6 {[%emt 0:03:13]} 27. Rd3 {[%emt 0:02:48]} Nc8 {[%emt 0:08:58]} 28. Rge3 {[%emt 0:00:00]} Kf8 {[%emt 0:02:12]} 29. Kf3 {[%emt 0:00:00]} f6 {[%emt 0:01:20]} 30. Ne2 {[%emt 0:00:00]} g6 {[%emt 0:01:10]} 31. Nd4 {[%emt 0:02:00]} R6e7 {[%emt 0:00:39]} 32. f5 {[%emt 0:00:18]} g5 {[%emt 0:00:55]} 33. Ne6+ {[%emt 0:00:40]} Kf7 {[%emt 0:01:24]} 34. c4 {[%emt 0:02:09]} c5 {[%emt 0:01:24]} 35. Re2 {[%emt 0:01:28]} h5 {[%emt 0:02:23]} 36. g3 {[%emt 0:02:00]} Rxe6 {[%emt 0:00:17]} 37. fxe6+ {[%emt 0:00:06]} Rxe6 {[%emt 0:00:08]} 38. Red2 {[%emt 0:02:25]} Kg6 {[%emt 0:03:12]} 39. Rd5 {[%emt 0:00:58]} Kh6 {[%emt 0:00:42]} 40. h4 {[%emt 0:00:27]} g4+ {[%emt 0:00:26]} 41. Kf4 {[%emt 0:00:48]} Kg6 {[%emt 0:00:39]} 42. Rd1 {[%emt 0:01:21]} b6 {[%emt 0:02:45]} 43. R1d2 {[%emt 0:00:31]} Kg7 $2 {[%emt 0:07:54]} (43... Re7 44. Rd1 Re8) 44. Rxh5 {[%emt 0:02:46]} Ne7 {[%emt 0:00:15]} 45. Rhd5 {[%emt 0:01:51]} Ng6+ $1 $11 {[%emt 0:00:34]} 46. Ke3 {[%emt 0:00:53]} (46. Kf5 Nf8 47. Rxd6 Re5+ 48. Kxg4 Rxe4+ 49. Kf3 Re6) 46... Ne7 {[%emt 0:00:20]} 47. Kf2 {[%emt 0:01:11]} Nc8 $2 {[%emt 0:00:21]} (47... Nxd5 {was called for.} 48. Rxd5 (48. exd5 Re5 $11) 48... Rxe4) 48. Ke3 $2 {[%emt 0:00:42]} (48. Rf5 $18) 48... Ne7 {[%emt 0:00:09]} 49. Kf4 $2 {[%emt 0:00:46]} ({Better is} 49. R5d3 $18) 49... Nc8 $18 {[%emt 0:01:38]} 50. Kxg4 {[%emt 0:00:38]} Rxe4+ {[%emt 0:00:09]} 51. Kf3 {[%emt 0:00:26]} Re6 {[%emt 0:00:04]} 52. g4 {[%emt 0:00:27]} Kf7 {[%emt 0:01:19]} 53. R2d3 {[%emt 0:00:54]} Kg6 {[%emt 0:00:37]} 54. Re3 {[%emt 0:00:23]} Rxe3+ {[%emt 0:02:17]} 55. Kxe3 {[%emt 0:00:01]} Kf7 {[%emt 0:00:19]} 56. Kf4 {[%emt 0:00:23]} Kg6 {[%emt 0:00:36]} 57. h5+ {[%emt 0:00:34]} Kf7 {[%emt 0:00:55]} 58. Rd1 {[%emt 0:00:48]} Ke6 {[%emt 0:02:22]} 59. Re1+ {[%emt 0:00:43]} Kf7 {[%emt 0:00:01]} 60. h6 {[%emt 0:00:13]} 1-0

[Event "XII Sabadell Open 2019"]
[Site "Sabadell"]
[Date "2019.09.03"]
[Round "2.16"]
[White "Bedoya Rosales, Luis"]
[Black "Fernandez Climent, Albert"]
[Result "1-0"]
[ECO "B86"]
[WhiteElo "1918"]
[BlackElo "1674"]
[Annotator "NA"]
[PlyCount "61"]
[EventDate "2019.09.01"]
[EventCountry "ESP"]
[SourceTitle "playchess.com"]
[Source "ChessBase"]
[SourceQuality "1"]
[TimeControl "5400+30"]

1. e4 {[%emt 0:00:37]} c5 {[%emt 0:00:50]} 2. Nf3 {[%emt 0:00:27]} e6 {[%emt 0:00:08]} 3. d4 {[%emt 0:00:05]} cxd4 {[%emt 0:00:18]} 4. Nxd4 {[%emt 0:00:23]} Nf6 {[%emt 0:00:28]} 5. Nc3 {[%emt 0:00:49]} d6 {[%emt 0:00:08]} 6. Bc4 {[%emt 0:00:27]} Nbd7 {[%emt 0:01:32]} 7. Bb3 {[%emt 0:00:23]} a6 {[%emt 0:01:24]} 8. f4 {[%emt 0:02:21]} Nc5 {[%emt 0:00:23]} 9. O-O {[%emt 0:05:22]} Nfxe4 {[%emt 0:00:09]} 10. Nxe4 {[%emt 0:00:09]} Nxe4 {[%emt 0:00:19]} 11. f5 {[%emt 0:00:03]} e5 {[%emt 0:01:36]} 12. Qh5 {[%emt 0:01:03]} d5 {[%emt 0:05:28]} 13. Re1 {[%emt 0:10:47]} Qd7 {[%emt 0:14:56]} 14. Rxe4 {[%emt 0:23:23]} dxe4 {[%emt 0:03:30]} 15. Ne6 {[%emt 0:13:28]} Bc5+ {[%emt 0:32:04]} 16. Kh1 {[%emt 0:00:21]} g6 {[%emt 0:03:35]} 17. fxg6 {[%emt 0:00:22]} fxg6 {[%emt 0:00:09]} 18. Qe2 {[%emt 0:01:22]} Qxe6 {[%emt 0:05:28]} 19. Bxe6 {[%emt 0:00:39]} Bxe6 {[%emt 0:05:29]} 20. Be3 {[%emt 0:00:18]} Bxe3 {[%emt 0:02:58]} 21. Qxe3 {[%emt 0:00:37]} Bf5 {[%emt 0:00:58]} 22. Qc5 {[%emt 0:02:05]} Rc8 {[%emt 0:00:03]} 23. Qxe5+ {[%emt 0:00:17]} Kf7 {[%emt 0:02:18]} 24. Qd5+ {[%emt 0:00:31]} Kf6 {[%emt 0:02:53]} 25. Rf1 {[%emt 0:06:03]} Kg7 {[%emt 0:01:44]} 26. g4 {[%emt 0:08:19]} Bxg4 {[%emt 0:00:30]} 27. Rf7+ {[%emt 0:00:03]} Kh6 {[%emt 0:00:41]} 28. h4 {[%emt 0:00:07]} Bf5 {[%emt 0:00:56]} 29. Qd2+ {[%emt 0:00:06]} e3 {[%emt 0:01:10]} 30. Qxe3+ {[%emt 0:00:04]} Kh5 {[%emt 0:00:23]} 31. Qg5# {[%emt 0:00:02]} 1-0